[Event "5th Sharjah Masters 2022"]
[Site "Sharjah"]
[Date "2022.05.26"]
[Round "6.9"]
[White "Erigaisi Arjun"]
[Black "Aryan Chopra"]
[Result "1-0"]
[ECO "E53"]
[WhiteElo "2675"]
[BlackElo "2609"]
[Annotator "TA"]
[PlyCount "133"]
[EventDate "2022.05.21"]
[EventType "swiss"]
[EventCountry "UAE"]
[SourceTitle "playchess.com"]
[Source "ChessBase"]
[SourceQuality "1"]
[TimeControl "5400+30"]

{[%evp 18,133,0,0,0,-4,9,22,22,12,10,19,25,5,5,9,12,0,6,0,14,14,15,16,20,22,11,0,0,-19,0,-41,14,11,14,0,23,0,22,0,18,0,0,0,0,0,49,18,62,4,4,8,9,-64,10,-16,-8,-36,-37,-45,-47,-58,-48,-63,-82,-121,-63,-121,-60,-84,-34,-36,-4,-5,0,0,0,0,0,0,55,0,0,-7,245,237,304,286,260,232,821,518,500,517,473,466,458,437,436,432,435,434,579,433,29976,29952,29985,29986,29986,29987,29988,29985,29985,29986,29986,29987,29986,29986]} 1. d4 {[%emt 0:01:21]} Nf6 {[%emt 0:00:03]} 2. c4 {[%emt 0:00:05]} e6 {[%emt 0:00:04]} 3. Nc3 {[%emt 0:00:04]} Bb4 {[%emt 0:00:04]} 4. e3 {[%emt 0:00:05]} O-O {[%emt 0:00:13]} 5. Bd3 {[%emt 0:00:10]} d5 {[%emt 0:00:08]} 6. a3 {[%emt 0:00:06]} Bxc3+ {[%emt 0:00:30]} 7. bxc3 {[%emt 0:00:06]} dxc4 {[%emt 0:00:09]} 8. Bxc4 {[%emt 0:00:06]} c5 {[%emt 0:00:03]} 9. Nf3 {[%emt 0:00:07]} Qc7 {[%emt 0:00:06]} 10. Be2 {[%emt 0:00:05]} b6 {[%emt 0:00:12] E53: Nimzo-Indian: Rubinstein: Main Line (4...0-0 5 Nf3 d5 6 Bd3 c5 7 0-0).} 11. Bb2 $1 {[%emt 0:00:08][%mdl 4] now scores much better than the old 11.0-0.} cxd4 {[%emt 0:01:38]} 12. cxd4 {[%emt 0:00:52]} Ba6 {[%emt 0:00:04] The position is equal.} 13. O-O {[%emt 0:00:07]} Bxe2 {[%emt 0:03:23]} 14. Qxe2 {[%emt 0:00:41]} Nbd7 {[%emt 0:00:03]} 15. e4 {[%emt 0:00:06]} Rac8 {[%emt 0:03:28][%cal Ba8c8,Bc8c7,Bc7c2,Bc2a2][%mdl 32]} 16. Rfc1 {[%emt 0:00:16] Against Qc2} Qb7 {[%emt 0:00:05]} 17. Re1 {[%emt 0:00:05]} h6 {[%emt 0:03:01]} 18. Rab1 {[%emt 0:00:13]} Rc7 {[%emt 0:14:35]} 19. Nd2 {[%emt 0:06:57]} Rfc8 {[%emt 0:01:08]} 20. Nf1 {[%emt 0:12:37]} Qc6 {[%emt 0:17:21] [#]} 21. Ng3 $146 {[%emt 0:24:13]} ({Predecessor:} 21. f3 Qc2 22. Qb5 Qc6 23. Qe2 Qc2 24. Ne3 Qxe2 25. Rxe2 Ne8 26. d5 Nc5 27. dxe6 Nxe6 {½-½ (84) So,W (2770)-Giri,A (2780) Bucharest 2021}) 21... Qc4 {[%emt 0:18:39]} 22. Qf3 {[%emt 0:01:18]} Qa2 {[%emt 0:00:07]} 23. h3 {[%emt 0:00:16]} Rc2 {[%emt 0:01:38]} 24. Ba1 {[%emt 0:00:06][%cal Od4d5]} Re8 {[%emt 0:11:50]} (24... R8c4 $1 $15) 25. Rf1 {[%emt 0:22:42]} Qc4 {[%emt 0:07:48]} 26. Rbe1 {[%emt 0:02:26]} Qc7 {[%emt 0:02:40]} 27. Qd1 {[%emt 0:02:02]} Ra2 {[%emt 0:02:57]} 28. Qb3 {[%emt 0:02:26]} Qc2 {[%emt 0:00:47]} 29. Qf3 {[%emt 0:00:05]} Qa4 {[%emt 0:05:22]} 30. Re3 {[%emt 0:00:27]} b5 {[%emt 0:00:55]} 31. d5 {[%emt 0:10:44]} b4 {[%emt 0:00:12]} (31... exd5 32. Nf5 $16) (31... a5 $11) 32. dxe6 {[%emt 0:02:28]} Rxe6 {[%emt 0:03:38][%cal Ra2a3]} 33. Nf5 {[%emt 0:01:32]} (33. Bxf6 $14 Rxf6 34. Nf5) 33... Rxa3 $11 {[%emt 0:00:04] [#]} 34. Qg3 $1 {[%emt 0:00:08][%csl Gf5][%cal Rg3g7]} Ne8 {[%emt 0:03:26]} ({Much less strong is} 34... Nh5 35. Rxa3 bxa3 36. Qg4 $14) 35. Bd4 {[%emt 0:03:15]} (35. Bxg7 $11 Rg6 36. Rxa3 bxa3 37. Ne7+ Kxg7 38. Nxg6 fxg6 39. Ra1) 35... Qa6 {[%emt 0:01:04]} (35... Kh7 $1 $15) 36. Rc1 {[%emt 0:03:21][%cal Oc1c7]} ({Wrong is} 36. Nxg7 $2 Rg6 37. Rxa3 bxa3 $19) 36... Rxe3 {[%emt 0:00:06]} 37. Qxe3 {[%emt 0:00:05]} (37. fxe3 $5 {[%cal Rc1c7]} Qb7 38. Bxg7 $11) 37... Qb7 {[%emt 0:00:33]} 38. f3 {[%emt 0:00:32]} a5 {[%emt 0:00:22]} 39. Qb3 {[%emt 0:00:05]} Kh7 {[%emt 0:00:46]} 40. Qa4 {[%emt 0:00:08]} Ra6 {[%emt 0:00:40]} 41. Ne3 {[%emt 0:00:51]} Nef6 {[%emt 0:00:27]} (41... Nd6 $17 {Threatens to win with ...Nf8.} 42. Nd5 Nb5) 42. Rd1 {[%emt 0:00:57]} (42. Kh1 $15) 42... Qc6 {[%emt 0:00:09]} ({Black should try} 42... Nh5 $17 {And now ...Nf4 would win.} 43. Rd2 Nf4 44. Bxg7 Nc5) 43. Qb3 $15 {[%emt 0:00:15]} Qe6 {[%emt 0:00:08] Against e5} (43... Kg8 $17) 44. Qd3 $1 {[%emt 0:00:05] Hoping for e5+.} Kg8 {[%emt 0:00:21]} (44... g6 $5 {[%cal Ra5a4]}) 45. e5 {[%emt 0:00:59]} Ne8 {[%emt 0:00:11]} 46. f4 $1 {[%emt 0:00:13]} Ra8 $1 {[%emt 0:01:47]} 47. f5 {[%emt 0:00:21]} ({White should play} 47. Qe4 $11 Rc8 48. f5) 47... Qc6 $14 {[%emt 0:00:01]} 48. f6 $36 {[%emt 0:00:19][%mdl 2048] Strongly threatening Nf5. White has the initiative.} Qe6 {[%emt 0:00:17]} (48... gxf6 $2 49. Nf5 Kh8 50. exf6 $18 (50. Nxh6 Nxe5 51. Bxe5 fxe5 $16)) 49. Qe4 {[%emt 0:01:55]} (49. fxg7 $1 $14 Nxg7 50. Rf1) 49... Rd8 {[%emt 0:00:11][%cal Re8f6] aiming for ...Nexf6!} 50. fxg7 {[%emt 0:00:59]} b3 $2 {[%emt 0:01:09][%mdl 8192] [#] A mistake that costs the game.} (50... Nxg7 $11 {and Black has nothing to worry.} 51. Bb2 Re8) 51. Qf4 $1 $18 {[%emt 0:01:07]} Nxg7 {[%emt 0:00:54] [#]} 52. Ng4 $1 {[%emt 0:00:07]} Kh7 {[%emt 0:00:24]} 53. Bb2 {[%emt 0:00:12]} Nh5 $2 {[%emt 0:00:31]} (53... Ne8 54. Kh1 a4) 54. Qf3 {[%emt 0:01:04]} Nxe5 {[%emt 0:00:37]} 55. Nxe5 {[%emt 0:00:38]} ({Weaker is} 55. Bxe5 Rxd1+ 56. Qxd1 f5 $16) 55... Rxd1+ {[%emt 0:00:01]} 56. Qxd1 {[%emt 0:00:02]} Nf4 {[%emt 0:00:02]} 57. Qb1+ {[%emt 0:00:56]} Kg8 {[%emt 0:00:29]} 58. Qe4 {[%emt 0:00:41]} Nd5 {[%emt 0:00:37]} 59. Qc4 {[%emt 0:01:13] Black must now prevent Ng4.} Nb4 {[%emt 0:00:16]} 60. Qc7 {[%emt 0:00:30]} Qf5 {[%emt 0:00:11]} (60... Nd5 $18 61. Qc4 Kh7 62. Qd3+ Kg8 63. Qg3+ Kf8) 61. Bc3 {[%emt 0:01:40] White mates.} Qf4 {[%emt 0:00:41]} 62. Qc8+ {[%emt 0:01:10]} Kh7 {[%emt 0:00:01]} 63. Ng4 {[%emt 0:00:02]} Nd5 {[%emt 0:00:49]} 64. Be5 {[%emt 0:00:40]} Qg5 {[%emt 0:00:10]} 65. Qh8+ {[%emt 0:00:12]} Kg6 {[%emt 0:00:01]} 66. Qg7+ {[%emt 0:00:01]} Kf5 {[%emt 0:00:01]} 67. Qxf7+ {[%emt 0:00:02] Weighted Error Value: White=0.20 (precise) /Black=0.34} 1-0

[Event "5th Sharjah Masters 2022"]
[Site "Sharjah"]
[Date "2022.05.26"]
[Round "6.10"]
[White "Sindarov, Javokhir"]
[Black "Narayanan.S.L"]
[Result "1/2-1/2"]
[ECO "C50"]
[WhiteElo "2609"]
[BlackElo "2662"]
[Annotator "TA"]
[PlyCount "66"]
[EventDate "2022.05.21"]
[EventType "swiss"]
[EventCountry "UAE"]
[SourceTitle "playchess.com"]
[Source "ChessBase"]
[SourceQuality "1"]
[TimeControl "5400+30"]

{[%evp 12,66,8,0,0,7,2,10,9,9,0,0,9,9,18,14,18,7,13,14,37,13,15,16,38,5,16,15,14,0,0,15,16,14,12,17,17,10,22,0,0,0,8,7,7,4,5,0,6,2,14,0,0,0,0,-14,-18]} 1. e4 {[%emt 0:00:03]} e5 {[%emt 0:00:13]} 2. Nf3 {[%emt 0:00:04]} Nc6 {[%emt 0:00:07]} 3. Bc4 {[%emt 0:00:05]} Bc5 {[%emt 0:00:12]} 4. Nc3 {[%emt 0:00:26]} Nf6 {[%emt 0:00:19]} 5. d3 {[%emt 0:00:04]} h6 {[%emt 0:00:09]} 6. O-O {[%emt 0:00:12]} O-O {[%emt 0:01:13]} 7. h3 {[%emt 0:00:09]} a6 {[%emt 0:00:42] C50: Hungarian Defence and Giuoco Pianissimo.} 8. Be3 {[%emt 0:00:07] is the new trend.} d6 {[%emt 0:04:04]} 9. Bxc5 {[%emt 0:00:08]} dxc5 {[%emt 0:00:06]} 10. a4 {[%emt 0:00:02]} Re8 {[%emt 0:00:26] [#]} 11. Nd2 $146 {[%emt 0:02:00]} ({Predecessor:} 11. Nd5 Be6 12. Ne3 Bxc4 13. Nxc4 b6 14. Ne3 Nd7 15. Nd2 Nf8 16. Qg4 Ne6 17. h4 Ncd4 18. Rfd1 Qf6 19. g3 Nc6 20. Kg2 Nb4 21. Nf3 Rad8 {1-0 (21) Demchenko,A (2583)-Sethuraman,S (2477) Riga 2021}) 11... Nd4 {[%emt 0:02:21]} 12. Ba2 {[%emt 0:07:47]} Be6 {[%emt 0:29:35]} 13. Bxe6 {[%emt 0:00:23]} Rxe6 {[%emt 0:00:09]} 14. Nc4 {[%emt 0:00:44]} b5 {[%emt 0:00:52]} 15. Ne3 {[%emt 0:00:24]} c6 {[%emt 0:01:03] Against Ncd5} 16. b3 {[%emt 0:08:24]} Re8 {[%emt 0:00:49]} 17. Ne2 {[%emt 0:11:24][%cal Bc3e2,Be2g3,Bg3f1,Bf1h2,Bh2f3][%mdl 32]} g6 {[%emt 0:13:25]} 18. Kh1 {[%emt 0:05:47]} Kg7 {[%emt 0:03:26] The position is equal.} 19. Qd2 {[%emt 0:07:23]} Qc7 {[%emt 0:01:19]} 20. Ng3 {[%emt 0:05:26][%cal Of2f4]} Kh7 {[%emt 0:00:50]} 21. Ra2 {[%emt 0:01:13]} Rec8 {[%emt 0:08:32]} 22. Rfa1 {[%emt 0:04:27]} Qd8 {[%emt 0:00:28]} 23. Ngf1 {[%emt 0:01:59]} Kg8 {[%emt 0:01:36]} 24. Nh2 {[%emt 0:01:15] White wants to play Neg4.} h5 {[%emt 0:00:39] Inhibits Neg4.} 25. Rg1 {[%emt 0:03:31]} Qe7 {[%emt 0:02:04]} 26. Rga1 {[%emt 0:08:16]} Qd8 {[%emt 0:00:14]} 27. Qd1 {[%emt 0:00:20]} Kg7 {[%emt 0:02:28]} 28. Nf3 {[%emt 0:01:33]} Nd7 {[%emt 0:00:17]} 29. Nf1 {[%emt 0:02:11][%cal Be3f1,Bf1h2,Bh2f3][%mdl 32]} Rcb8 {[%emt 0:03:47]} 30. N1h2 {[%emt 0:01:18]} Rc8 {[%emt 0:00:53]} 31. Qd2 {[%emt 0:01:25]} Qf6 {[%emt 0:03:26]} 32. Nxd4 {[%emt 0:09:24]} cxd4 {[%emt 0:00:10]} ({Don't take} 32... exd4 33. axb5 cxb5 34. f4 $14) 33. Nf3 {[%emt 0:00:06]} Nc5 {[%emt 0:02:55] A balanced but interesting game.  Weighted Error Value: White=0.06 (flawless) /Black=0.03 (flawless)} 1/2-1/2

[Event "5th Sharjah Masters 2022"]
[Site "Sharjah"]
[Date "2022.05.26"]
[Round "6.11"]
[White "Hovhannisyan, Robert"]
[Black "Gukesh D"]
[Result "0-1"]
[ECO "B47"]
[WhiteElo "2607"]
[BlackElo "2659"]
[Annotator "TA"]
[PlyCount "70"]
[EventDate "2022.05.21"]
[EventType "swiss"]
[EventCountry "UAE"]
[SourceTitle "playchess.com"]
[Source "ChessBase"]
[SourceQuality "1"]
[TimeControl "5400+30"]

{[%evp 11,70,16,26,29,27,0,25,-69,-77,-64,-18,-8,0,0,0,0,0,-138,-89,-254,-181,-296,-298,-306,-264,-264,-268,-283,-277,-331,-338,-394,-391,-420,-419,-413,-322,-425,-422,-462,-454,-465,-450,-458,-452,-430,-457,-459,-452,-437,-451,-532,-518,-591,-579,-618,-618,-610,-568,-1095,-615]} 1. e4 {[%emt 0:00:04]} c5 {[%emt 0:00:56]} 2. Nf3 {[%emt 0:00:10]} Nc6 {[%emt 0:00:40]} 3. d4 {[%emt 0:00:27]} cxd4 {[%emt 0:00:07]} 4. Nxd4 {[%emt 0:00:03]} e6 {[%emt 0:00:55][%cal Be7e6,Be6e5,Be5d4][%mdl 32]} 5. Nc3 {[%emt 0:00:20]} Qc7 {[%emt 0:00:07]} 6. Be2 {[%emt 0:00:59]} Nf6 {[%emt 0:00:39]} 7. Qd3 {[%emt 0:01:15] [#] B47: Sicilian: Taimanov: 5 Nc3 Qc7 6 f4, 6 g3 and 6 Be2.} Nb4 $146 {[%emt 0:06:10]} ({Predecessor:} 7... Nxd4 8. Qxd4 Bc5 9. Qd3 a6 10. Qg3 Qxg3 11. hxg3 d5 12. exd5 Nxd5 13. Bd2 O-O 14. Rd1 Nxc3 15. Bxc3 {½-½ (26) Janisch,M (2429)-Elyoseph,H (2438) ICCF email 2019}) 8. Qf3 {[%emt 0:01:55]} e5 {[%emt 0:19:45]} (8... Qb6 $5 {[%cal Rb6d4]} 9. a3 Qxd4 10. axb4 Bxb4 $11) 9. O-O {[%emt 0:23:03]} exd4 $15 {[%emt 0:11:15]} 10. Nb5 {[%emt 0:00:06][%csl LRc7,LRd4]} Qc6 {[%emt 0:05:25]} (10... Qxc2 11. Bg5 d3 12. Rac1 Qxb2 13. Bxd3 $16) (10... Qb6 $1 $15 11. e5 a6) 11. e5 $1 $11 {[%emt 0:11:22]} d3 {[%emt 0:02:06]} (11... Nxc2 12. exf6 Nxa1 13. Qg3 $16) 12. exf6 {[%emt 0:01:01][%cal Of1e1]} Qxb5 {[%emt 0:00:55]} (12... dxe2 $2 13. Qxe2+ Kd8 14. Re1 $18) 13. Qe4+ {[%emt 0:07:50]} Kd8 {[%emt 0:00:17]} 14. cxd3 {[%emt 0:03:27]} (14. fxg7 $1 $11 {was the only way to keep the balance.} Bxg7 15. Qh4+ f6 16. cxd3) 14... gxf6 {[%emt 0:02:52]} ({Black should try} 14... g6 {Threatens to win with ...d5.} 15. Bf4 d5) 15. d4 $2 {[%emt 0:01:32] This costs White the game.} (15. a3 $17 {is the only way for White.} Nc6 16. d4) 15... Qc6 {[%emt 0:08:03]} 16. d5 {[%emt 0:05:16]} (16. Qh4 {was worth a try.}) 16... Qxd5 $19 {[%emt 0:01:29]} ({But not} 16... Nxd5 $2 17. Bf3 Ne7 18. Qd3 $19) 17. Qf4 {[%emt 0:01:24]} Qe5 {[%emt 0:03:56] ...Nc2 is the strong threat.} 18. Qh4 {[%emt 0:01:44]} Be7 {[%emt 0:02:45]} 19. Bf3 {[%emt 0:06:00]} d5 {[%emt 0:00:37]} 20. Bf4 {[%emt 0:02:53] [#]} Qf5 {[%emt 0:00:23]} ({Inferior is} 20... Qxb2 21. Rab1 Qa3 22. Bd6 $11) 21. Bg3 {[%emt 0:11:39]} Be6 {[%emt 0:02:15]} 22. Rac1 {[%emt 0:01:55]} Rc8 {[%emt 0:07:40] Inhibits Rc7.} 23. Rxc8+ {[%emt 0:03:23]} Bxc8 {[%emt 0:00:11]} 24. Rc1 {[%emt 0:04:29]} Be6 {[%emt 0:05:56] Black is clearly winning.} 25. Qd4 {[%emt 0:01:20]} Nc6 {[%emt 0:00:16][%cal Bb4c6,Bc6d4,Bd4f5][%mdl 32]} 26. Qa4 {[%emt 0:00:16]} Ke8 {[%emt 0:03:10][%cal Bd8e8,Be8f8,Bf8g7][%mdl 32]} 27. Qb5 {[%emt 0:04:12]} Kf8 {[%emt 0:00:58] White must now prevent ...Nd4.} ({Wrong is} 27... Qg5 $2 28. Rd1 Bc8 29. Rxd5 $19) 28. Qxb7 {[%emt 0:00:41]} Nd4 {[%emt 0:00:46]} 29. Bd1 {[%emt 0:00:26]} Qe4 {[%emt 0:01:58][%cal Re4e1] [#]} 30. Bh5 {[%emt 0:00:58]} Nf5 {[%emt 0:01:27]} 31. Qxa7 {[%emt 0:02:24]} Kg7 {[%emt 0:00:35]} 32. Bf3 {[%emt 0:00:25]} Rc8 {[%emt 0:00:43][%cal Bh8c8,Bc8c4,Bc4b4][%mdl 32]} 33. Rd1 {[%emt 0:00:37]} Qc2 {[%emt 0:00:27]} 34. Qb7 {[%emt 0:01:13]} Rc4 {[%emt 0:01:55] aiming for ...Bc5.} 35. h3 {[%emt 0:00:51]} Rb4 {[%emt 0:00:21] Weighted Error Value: White=0.50/Black=0.12 (very precise)} 0-1

[Event "5th Sharjah Masters 2022"]
[Site "Sharjah"]
[Date "2022.05.26"]
[Round "6.12"]
[White "Moussard, Jules"]
[Black "Aravindh, Chithambaram VR."]
[Result "1/2-1/2"]
[ECO "B12"]
[WhiteElo "2651"]
[BlackElo "2606"]
[Annotator "TA"]
[PlyCount "63"]
[EventDate "2022.05.21"]
[EventType "swiss"]
[EventCountry "UAE"]
[SourceTitle "playchess.com"]
[Source "ChessBase"]
[SourceQuality "1"]
[TimeControl "5400+30"]

{[%evp 13,63,8,14,0,10,0,18,0,0,0,0,0,0,0,0,-13,-9,-30,-29,-31,-29,-30,-33,-35,-20,-26,-23,-38,-22,-35,-34,-35,-17,-37,0,0,0,0,0,0,0,0,0,0,0,0,0,-7,-7,-7,-7,0]} 1. e4 {[%emt 0:00:06]} c6 {[%emt 0:00:10]} 2. d4 {[%emt 0:00:30]} d5 {[%emt 0:00:30]} 3. e5 {[%emt 0:00:30]} Bf5 {[%emt 0:00:30]} 4. h4 {[%emt 0:00:30]} h5 {[%emt 0:00:30]} 5. c4 {[%emt 0:00:30]} e6 {[%emt 0:00:30]} 6. Nc3 {[%emt 0:00:30]} dxc4 {[%emt 0:00:00]} 7. Bxc4 {[%emt 0:00:12]} Nd7 {[%emt 0:00:00]} 8. Nf3 {[%emt 0:00:42] B12: Caro-Kann: Advance Variation.} Ne7 {[%emt 0:01:51]} 9. Bg5 {[%emt 0:02:26]} Nb6 {[%emt 0:00:43]} 10. Be2 {[%emt 0:11:19]} Qd7 {[%emt 0:01:33]} ({Resist} 10... Nbd5 {[#]} 11. Nb5 $1 {[%mdl 512]} Kd7 12. Nd6 $14) 11. O-O {[%emt 0:20:02]} Bg4 {[%emt 0:00:50]} 12. Nh2 {[%emt 0:21:03]} Bxe2 {[%emt 0:01:32] [#]} 13. Nxe2 $146 {[%emt 0:02:57]} ({Predecessor:} 13. Qxe2 Nf5 14. Nf3 Be7 15. Bxe7 Qxe7 16. g3 Rd8 17. Rfd1 f6 18. Rd3 O-O 19. Re1 {½-½ (46) Lupulescu,C (2659)-Harikrishna,P (2730) Krasnaya Polyana 2021}) 13... Nf5 {[%emt 0:00:30]} 14. Nf3 {[%emt 0:00:30]} Be7 {[%emt 0:00:30][%cal Bf8e7,Be7d8,Bd8c7][%mdl 32]} 15. Ng3 {[%emt 0:00:30]} Nxg3 {[%emt 0:00:30]} 16. fxg3 {[%emt 0:00:30]} f6 {[%emt 0:00:30]} 17. Be3 {[%emt 0:00:30]} Nd5 {[%emt 0:33:39]} 18. Bd2 {[%emt 0:01:47]} Bd8 {[%emt 0:00:30]} 19. Qe2 {[%emt 0:00:30]} Bc7 {[%emt 0:00:30]} 20. Rfe1 {[%emt 0:00:30]} O-O {[%emt 0:00:30]} 21. Qe4 {[%emt 0:00:30]} f5 {[%emt 0:00:30]} 22. Qe2 {[%emt 0:00:30]} Bd8 {[%emt 0:00:30]} 23. Bg5 {[%emt 0:00:30]} Bxg5 {[%emt 0:00:30]} 24. Nxg5 {[%emt 0:00:30] The position is equal.} g6 {[%emt 0:24:29]} 25. Red1 {[%emt 0:19:14]} Qe7 {[%emt 0:00:07]} 26. a3 {[%emt 0:01:49]} Rad8 {[%emt 0:00:18][%cal Ba8d8,Bd8d7,Bd7d5][%mdl 32]} 27. Rd3 {[%emt 0:00:36]} Rd7 {[%emt 0:01:45]} 28. Rad1 {[%emt 0:00:20]} Rfd8 {[%emt 0:00:30]} 29. Qd2 {[%emt 0:00:30]} Nc7 {[%emt 0:00:30]} 30. Qe3 {[%emt 0:00:30]} Rd5 {[%emt 0:00:30]} 31. Nh3 {[%emt 0:00:30]} Kg7 {[%emt 0:00:30]} 32. Kh2 {[%emt 0:00:30] Weighted Error Value: White=0.06 (flawless) /Black=0.04 (flawless)} 1/2-1/2

[Event "5th Sharjah Masters 2022"]
[Site "Sharjah"]
[Date "2022.05.26"]
[Round "6.13"]
[White "Can, Emre"]
[Black "Sargsyan, Shant"]
[Result "1/2-1/2"]
[ECO "E08"]
[WhiteElo "2599"]
[BlackElo "2641"]
[Annotator "TA"]
[PlyCount "158"]
[EventDate "2022.05.21"]
[EventType "swiss"]
[EventCountry "UAE"]
[SourceTitle "playchess.com"]
[Source "ChessBase"]
[SourceQuality "1"]
[TimeControl "5400+30"]

{[%evp 23,158,11,6,-2,14,10,14,15,10,16,10,12,12,11,15,0,0,0,0,0,0,0,0,0,14,19,17,10,5,11,33,40,36,0,0,-23,-18,-15,-23,-29,-39,-37,-38,-23,-25,-98,-101,-102,-41,-20,-21,-30,0,-26,0,0,0,-33,-33,-8,-15,-61,-68,-131,-127,-127,-127,-127,-124,-137,-137,-137,-137,-137,-111,-137,-137,-137,-86,-86,-86,-86,-86,-86,0,0,0,0,0,0,0,0,0,0,0,0,0,0,0,0,0,0,0,0,0,0,0,0,0,0,0,0,0,0,0,0,0,0,0,0,0,0,0,0,0,0,0,0,0,0,0,0,0,0,0,0,0]} 1. d4 {[%emt 0:00:08]} Nf6 {[%emt 0:01:15]} 2. c4 {[%emt 0:00:28]} e6 {[%emt 0:00:15]} 3. Nf3 {[%emt 0:00:30]} d5 {[%emt 0:00:15]} 4. g3 {[%emt 0:00:46]} Bb4+ {[%emt 0:00:26]} 5. Bd2 {[%emt 0:00:47]} Be7 {[%emt 0:00:13]} 6. Bg2 {[%emt 0:00:26]} O-O {[%emt 0:00:10]} 7. O-O {[%emt 0:00:27]} Nbd7 {[%emt 0:00:09]} 8. Qc2 {[%emt 0:00:31]} c6 {[%emt 0:00:26]} 9. Bf4 {[%emt 0:00:10]} b6 {[%emt 0:00:48]} 10. cxd5 {[%emt 0:00:30]} cxd5 {[%emt 0:00:08]} 11. Rc1 {[%emt 0:00:08]} Bb7 {[%emt 0:01:02]} 12. Bc7 {[%emt 0:01:14]} Qe8 {[%emt 0:00:18]} 13. Qb3 {[%emt 0:00:24] E08: Closed Catalan: Main Line: 7 Qc2.} Rc8 {[%emt 0:00:53][%cal Oe7d6]} 14. Na3 {[%emt 0:00:09]} Ne4 {[%emt 0:00:40]} 15. Nb5 {[%emt 0:00:28]} Ndc5 {[%emt 0:01:04]} 16. dxc5 {[%emt 0:00:28]} bxc5 {[%emt 0:00:06]} 17. Bf4 {[%emt 0:00:17][%cal Bc7f4,Bf4e3,Be3d4][%mdl 32]} c4 {[%emt 0:01:35]} 18. Qa4 {[%emt 0:00:58]} Bc5 {[%emt 0:01:28]} 19. Be3 {[%emt 0:00:21]} Bc6 {[%emt 0:03:48]} 20. Nfd4 {[%emt 0:00:25]} Bxd4 {[%emt 0:01:39][%mdl 64] Remove Defender} 21. Bxd4 {[%emt 0:00:11][%cal Oa4a3]} Bxb5 {[%emt 0:00:15]} 22. Qxa7 {[%emt 0:00:10]} Ra8 {[%emt 0:06:23]} 23. Qc7 {[%emt 0:00:58] [#]} Qb8 $146 {[%emt 0:01:35]} ({Predecessor:} 23... f6 24. Bxe4 dxe4 25. a4 Rxa4 26. Rxa4 Bxa4 27. Rxc4 Bb5 28. Rc2 e5 29. Bc5 Rf7 30. Qb6 Rd7 31. Kg2 {½-½ (31) Laffranchise,L (2490)-Parkaev,A (2505) ICCF email 2020}) 24. Qxb8 {[%emt 0:04:29]} Rfxb8 {[%emt 0:00:14]} 25. f3 {[%emt 0:04:39]} Nd6 {[%emt 0:04:24]} 26. e4 {[%emt 0:00:56]} f6 {[%emt 0:01:55]} 27. exd5 {[%emt 0:11:37]} exd5 {[%emt 0:00:14]} 28. Bh3 {[%emt 0:00:15] Strongly threatening Be6+.} Be8 {[%emt 0:11:05]} 29. a4 {[%emt 0:17:07]} Nb7 {[%emt 0:03:20]} 30. Re1 {[%emt 0:07:16]} Na5 {[%emt 0:01:12]} 31. Bc3 {[%emt 0:04:37]} ({Reject} 31. Be6+ Bf7 32. Bxf7+ Kxf7 $17) 31... Nb3 {[%emt 0:16:48][%csl LRa1,LRa4]} 32. Rad1 {[%emt 0:01:19] Against d4} Bf7 {[%emt 0:00:16]} 33. Bd7 $1 {[%emt 0:07:42]} Rd8 {[%emt 0:00:31]} 34. Bb5 {[%emt 0:00:27]} (34. Bc6 $1 $11 Rac8 35. Bb5) 34... d4 $17 {[%emt 0:00:16]} 35. Bb4 {[%emt 0:00:15]} d3 {[%emt 0:01:40]} (35... Rdc8 $1 $17 36. Re2 d3) 36. Bc3 $15 {[%emt 0:01:52]} Nc5 {[%emt 0:10:43]} 37. Ra1 {[%emt 0:04:59]} Nb3 {[%emt 0:02:09] And now ...d2 would win.} 38. Rad1 {[%emt 0:01:40]} h5 {[%emt 0:00:43]} 39. Re7 {[%emt 0:02:22][%cal Oe7f7]} Nc5 {[%emt 0:04:52]} 40. Rxf7 {[%emt 0:06:59]} Kxf7 {[%emt 0:00:28]} 41. Bxc4+ {[%emt 0:00:06] A strong pair of Bishops.} Kg6 {[%emt 0:01:06]} 42. a5 {[%emt 0:00:15]} (42. b3 $1 $11) 42... Na4 $1 {[%emt 0:04:14]} 43. Rxd3 {[%emt 0:06:30]} (43. Bxd3+ $15 f5 44. Be5) 43... Nxc3 $17 {[%emt 0:01:24]} 44. Rxd8 {[%emt 0:00:20]} Rxd8 {[%emt 0:00:04]} 45. bxc3 $15 {[%emt 0:00:06][%mdl 4096] Endgame KR-KB} Rc8 $1 {[%emt 0:00:31]} 46. Be2 {[%emt 0:02:57]} Rxc3 {[%emt 0:00:25][%cal Oh5h4]} 47. h4 {[%emt 0:00:09]} Kf5 {[%emt 0:02:46]} 48. Kf2 {[%emt 0:01:11]} Ra3 {[%emt 0:02:18]} 49. a6 {[%emt 0:00:03] [#]} Ke6 $1 {[%emt 0:01:51]} 50. Bc4+ {[%emt 0:01:52] [#]} Ke5 {[%emt 0:02:01]} (50... Ke7 $142 $1 51. f4 Kd6) 51. Bf7 $17 {[%emt 0:00:26]} Kd4 {[%emt 0:00:45]} 52. f4 {[%emt 0:03:35]} Rxa6 {[%emt 0:03:31]} 53. Bxh5 {[%emt 0:00:14]} Ra2+ {[%emt 0:00:27]} (53... f5 $17 54. Bf7 Kc5) 54. Kf3 $11 {[%emt 0:00:16] The position is equal.} Ra3+ {[%emt 0:00:04]} 55. Kf2 $1 {[%emt 0:07:37]} Ke4 {[%emt 0:00:51]} 56. Bg6+ $1 {[%emt 0:01:17]} f5 {[%emt 0:00:05]} 57. Kg2 {[%emt 0:00:31]} Ra5 {[%emt 0:08:58]} 58. h5 {[%emt 0:00:06]} Ke3 {[%emt 0:00:11]} 59. Bh7 {[%emt 0:00:50]} Ra2+ {[%emt 0:02:11]} 60. Kh3 {[%emt 0:00:07]} Kf2 {[%emt 0:00:33] Threatens to win with ...Ra3.} 61. Bxf5 {[%emt 0:00:32]} Ra3 {[%emt 0:00:08]} 62. Kh4 {[%emt 0:00:35]} Rxg3 {[%emt 0:00:05] ...Kf3 is the strong threat.} 63. h6 {[%emt 0:01:22]} gxh6 {[%emt 0:00:06] White must now prevent ...Kf3.} 64. Kh5 {[%emt 0:00:04]} Kf3 {[%emt 0:00:06]} 65. Kxh6 {[%emt 0:00:09]} Kxf4 {[%emt 0:00:01]} 66. Bg6 {[%emt 0:00:16]} Ke5 {[%emt 0:00:42] aiming for ...Kf6.} 67. Kh7 {[%emt 0:01:02]} Kf6 {[%emt 0:00:07]} 68. Bb1 {[%emt 0:01:19]} Rb3 {[%emt 0:00:58]} 69. Be4 {[%emt 0:00:27]} Rb4 {[%emt 0:00:14]} 70. Bc2 {[%emt 0:01:17]} Rb7+ {[%emt 0:00:11]} 71. Kh8 {[%emt 0:00:13]} Rc7 {[%emt 0:00:20]} 72. Bh7 {[%emt 0:00:13]} Kf7 {[%emt 0:00:08] Hoping for ...Rc8+.} 73. Bg8+ {[%emt 0:00:14]} Kg6 {[%emt 0:00:04]} 74. Ba2 {[%emt 0:00:44]} Rh7+ {[%emt 0:00:21]} 75. Kg8 {[%emt 0:00:06]} Ra7 {[%emt 0:00:06]} 76. Bb1+ {[%emt 0:00:16]} Kf6 {[%emt 0:00:05]} 77. Bc2 {[%emt 0:00:30]} Ra8+ {[%emt 0:00:16]} 78. Kh7 {[%emt 0:00:02]} Rh8+ {[%emt 0:00:09]} 79. Kxh8 {[%emt 0:02:46]} Ke5 {[%emt 0:05:56] Weighted Error Value: White=0.08 (flawless) /Black=0.06 (flawless)} 1/2-1/2